fUST/lending_fUST_20250512
["ID","MTS","AMOUNT","RATE_DAILY","PERIOD"]
[360823410,1747042249306,-182.02842586,0.00019726,2]
[360823411,1747042249318,-400.0,0.00019726,2]
[360823412,1747042249327,-400.0,0.00019726,2]
[360823413,1747042249338,-513.61,0.00019726,2]
[360823414,1747042249347,-400.0,0.00019726,2]
[360823415,1747042249357,-450.78,0.00019726,2]
[360823416,1747042249367,-400.0,0.00019726,2]
[360823417,1747042249376,-400.0,0.00019726,2]
[360823418,1747042249386,-425.56661152,0.00019726,2]
[360823419,1747042249397,-521.95368362,0.00019726,2]
[360823420,1747042249406,-400.0,0.00019726,2]
[360823421,1747042249416,-343.39855692,0.00019726,2]
[360823422,1747042249425,-470.35825724,0.00019726,2]
[360823423,1747042249434,-200.0,0.00019726,2]
[360823424,1747042249444,-400.0,0.00019726,2]
[360823425,1747042249453,-400.0,0.00019726,2]
[360823426,1747042249464,-400.0,0.00019726,2]
[360823427,1747042249473,-400.0,0.00019726,2]
[360823428,1747042249483,-400.0,0.00019726,2]
[360823429,1747042249494,-400.0,0.00019726,2]
[360823430,1747042249503,-400.0,0.00019726,2]
[360823431,1747042249514,-400.0,0.00019726,2]
[360823432,1747042249523,-400.0,0.00019726,2]
[360823433,1747042249533,-400.0,0.00019726,2]
[360823434,1747042249543,-400.0,0.00019726,2]
[360823435,1747042249552,-400.0,0.00019726,2]
[360823436,1747042249563,-400.0,0.00019726,2]
[360823437,1747042249572,-400.0,0.00019726,2]
[360823438,1747042249582,-400.0,0.00019726,2]
[360823439,1747042249591,-400.0,0.00019726,2]
[360823440,1747042249600,-196.68133147,0.00019726,2]
[360823441,1747042249608,-400.0,0.00019726,2]
[360823442,1747042249618,-400.0,0.00019726,2]
[360823443,1747042249627,-482.33258424,0.00019726,2]
[360823444,1747042249636,-415.42379256,0.00019726,2]
[360823445,1747042249645,-400.0,0.00019726,2]
[360823446,1747042249655,-400.0,0.00019726,2]
[360823447,1747042249664,-400.0,0.00019726,2]
[360823448,1747042249673,-400.0,0.00019726,2]
[360823449,1747042249682,-400.0,0.00019726,2]
[360823450,1747042249691,-400.0,0.00019726,2]
[360823451,1747042249700,-505.68385812,0.00019726,2]
[360823452,1747042249709,-400.0,0.00019726,2]
[360823453,1747042249718,-400.0,0.00019726,2]
[360823454,1747042249728,-400.0,0.00019726,2]
[360823455,1747042249737,-400.0,0.00019726,2]
[360823456,1747042249747,-717.69,0.00019726,2]
[360823457,1747042249755,-400.0,0.00019726,2]
[360823458,1747042249765,-400.0,0.00019726,2]
[360823459,1747042249774,-535.7,0.00019726,2]
[360823460,1747042249784,-486.04,0.00019726,2]
[360823461,1747042249793,-391.83012305,0.00019726,2]
[360823462,1747042249802,-436.51,0.00019726,2]
[360823463,1747042249813,-407.85,0.00019726,2]
[360823464,1747042249822,-400.0,0.00019726,2]
[360823465,1747042249831,-412.92934287,0.00019726,2]
[360823466,1747042249841,-400.0,0.00019726,2]
[360823467,1747042249850,-400.0,0.00019726,2]
[360823468,1747042249859,-400.0,0.00019726,2]
[360823469,1747042249869,-400.0,0.00019726,2]
[360823470,1747042249878,-400.0,0.00019726,2]
[360823471,1747042249888,-400.0,0.00019726,2]
[360823472,1747042249898,-400.0,0.00019726,2]
[360823473,1747042249907,-1307.49,0.00019726,2]
[360823474,1747042249917,-400.0,0.00019726,2]
[360823475,1747042249927,-400.0,0.00019726,2]
[360823476,1747042249936,-521.8017594,0.00019726,2]
[360823477,1747042249945,-400.0,0.00019726,2]
[360823478,1747042249955,-538.03,0.00019726,2]
[360823479,1747042249964,-425.87,0.00019726,2]
[360823480,1747042249973,-400.0,0.00019726,2]
[360823481,1747042249982,-400.0,0.00019726,2]
[360823482,1747042249991,-465.93,0.00019726,2]
[360823483,1747042250000,-400.0,0.00019726,2]
[360823484,1747042250013,-400.0,0.00019726,2]
[360823485,1747042250023,-400.0,0.00019726,2]
[360823486,1747042250032,-400.0,0.00019726,2]
[360823487,1747042250042,-400.0,0.00019726,2]
[360823488,1747042250052,-414.7174331,0.00019726,2]
[360823489,1747042250061,-400.0,0.00019726,2]
[360823490,1747042250187,-400.0,0.00019726,2]
[360823491,1747042250198,-400.0,0.00019726,2]
[360823492,1747042250207,-400.0,0.00019726,2]
[360823493,1747042250219,-400.0,0.00019726,2]
[360823494,1747042250228,-400.0,0.00019726,2]
[360823495,1747042250238,-754.12,0.00019726,2]
[360823496,1747042250248,-400.0,0.00019726,2]
[360823497,1747042250258,-358.67635654,0.00019726,2]
[360823498,1747042250267,-400.0,0.00019726,2]
[360823499,1747042250277,-203.61048801,0.00019726,2]
[360823500,1747042250286,-400.0,0.00019726,2]
[360823501,1747042250295,-11334.72,0.00019726,2]
[360823502,1747042250304,-400.0,0.00019726,2]
[360823503,1747042250314,-1019.39,0.00019726,2]
[360823504,1747042250324,-691.18,0.00019726,2]
[360823505,1747042250333,-400.0,0.00019726,2]
[360823506,1747042250344,-400.0,0.00019726,2]
[360823507,1747042250353,-400.0,0.00019726,2]
[360823508,1747042250362,-400.0,0.00019726,2]
[360823509,1747042250372,-415.97,0.00019726,2]
[360823510,1747042250381,-400.0,0.00019726,2]
[360823511,1747042250390,-400.0,0.00019726,2]
[360823512,1747042250401,-151.0,0.00019726,2]
[360823513,1747042250411,-337.67419491,0.00019726,2]
[360823514,1747042250421,-663.64,0.00019726,2]
[360823515,1747042250431,-400.0,0.00019726,2]
[360823516,1747042250442,-11894.44,0.00019726,2]
[360823517,1747042250451,-151.0,0.00019726,2]
[360823518,1747042250460,-400.0,0.00019726,2]
[360823519,1747042250469,-13440.36,0.00019726,2]
[360823520,1747042250478,-400.0,0.00019726,2]
[360823521,1747042250488,-151.0,0.00019726,2]
[360823522,1747042250497,-400.0,0.00019726,2]
[360823523,1747042250508,-400.0,0.00019726,2]
[360823524,1747042250517,-400.0,0.00019726,2]
[360823525,1747042250527,-1437.93,0.00019726,2]
[360823526,1747042250536,-400.0,0.00019726,2]
[360823527,1747042250546,-289.0229163,0.00019726,2]
[360823528,1747042250555,-400.0,0.00019726,2]
[360823529,1747042250564,-400.0,0.00019726,2]
[360823530,1747042250573,-2617.95,0.00019726,2]
[360823531,1747042250583,-500.0,0.00019773,2]
[360823532,1747042250592,-500.0,0.00019773,2]
[360823533,1747042250601,-500.0,0.00019773,2]
[360823534,1747042250611,-502.11152408,0.00019773,2]
[360823535,1747042250620,-500.0,0.00019773,2]
[360823536,1747042250629,-500.0,0.00019773,2]
[360823537,1747042250639,-500.0,0.00019773,2]
[360823538,1747042250648,-500.0,0.00019773,2]
[360823539,1747042250658,-151.0,0.00019773,2]
[360823540,1747042250667,-151.0,0.00019773,2]
[360823541,1747042250676,-151.0,0.00019773,2]
[360823542,1747042250686,-151.0,0.00019773,2]
[360823543,1747042250695,-280.84074,0.00019773,2]
[360823544,1747042250705,-1627.701267,0.0001978,5]
[360823545,1747042250715,-53157.39725387,0.000198,2]
[360823546,1747042250724,-151.859237,0.000198,2]
[360823547,1747042250734,-151.0,0.000198,2]
[360823548,1747042250743,-151.0,0.000198,2]
[360823549,1747042250752,-1000.0,0.000198,5]
[360823550,1747042250762,-151.0,0.000198,2]
[360823551,1747042250771,-151.373288,0.000198,2]
[360823552,1747042250781,-151.0,0.000198,2]
[360823553,1747042250790,-151.0,0.000198,2]
[360823554,1747042250799,-151.0,0.000198,2]
[360823555,1747042250809,-151.0,0.000198,2]
[360823556,1747042250820,-151.0,0.000198,2]
[360823557,1747042250829,-151.0,0.000198,2]
[360823558,1747042250839,-151.0,0.000198,2]
[360823559,1747042250848,-256.3454,0.000198,2]
[360823560,1747042250857,-151.0,0.000198,2]
[360823561,1747042250866,-151.0,0.000198,2]
[360823562,1747042250876,-151.0,0.000198,2]
[360823563,1747042250885,-151.0,0.000198,2]
[360823564,1747042250894,-151.0,0.000198,2]
[360823565,1747042250903,-151.0,0.000198,2]
[360823566,1747042250912,-151.0,0.000198,2]
[360823567,1747042250922,-151.0,0.000198,2]
[360823568,1747042250931,-151.0,0.000198,2]
[360823569,1747042250940,-151.0,0.000198,2]
[360823570,1747042250950,-151.0,0.000198,2]
[360823571,1747042250960,-151.0,0.000198,2]
[360823572,1747042250970,-151.0,0.000198,2]
[360823573,1747042250980,-151.0,0.000198,2]
[360823574,1747042250989,-151.0,0.000198,2]
[360823575,1747042250999,-500.0,0.000198,2]
[360823576,1747042251011,-1000.0,0.0001982,5]
[360823577,1747042251021,-1000.0,0.0001984,5]
[360823578,1747042251030,-1000.0,0.0001986,5]
[360823579,1747042251040,-6002.3438764,0.00019866,2]
[360823580,1747042251051,-1744.597466,0.0001988,5]
[360823581,1747042251060,-1000.0,0.0001988,5]
[360823582,1747042251071,-283.10018,0.000199,2]
[360823583,1747042251081,-1000.0,0.000199,5]
[360823584,1747042251091,-1000.0,0.000199,5]
[360823585,1747042251101,-1000.0,0.0001992,5]
[360823586,1747042251110,-1000.0,0.0001992,5]
[360823587,1747042251119,-200.0,0.00019935,2]
[360823588,1747042251129,-1000.0,0.0001994,5]
[360823589,1747042251138,-1000.0,0.0001994,5]
[360823590,1747042251148,-1000.0,0.0001996,5]
[360823591,1747042251157,-1000.0,0.0001996,5]
[360823592,1747042251167,-500.0,0.00019973,2]
[360823593,1747042251177,-524.46305607,0.00019973,2]
[360823594,1747042251186,-500.0,0.00019973,2]
[360823595,1747042251196,-500.33976156,0.00019973,2]
[360823596,1747042251206,-500.0,0.00019973,2]
[360823597,1747042251215,-215.0738,0.00019978,2]
[360823598,1747042251224,-1000.0,0.0001998,5]
[360823599,1747042251234,-1000.0,0.0001998,5]
[360823600,1747042251243,-147521.9349522,0.0002,2]
[360823601,1747042251253,-72409.58349367,0.0002,3]
[360823602,1747042251262,-22002.12194197,0.0002,2]
[360823603,1747042251273,-790.16,0.0002,2]
[360823604,1747042251282,-500.0,0.0002,2]
[360823605,1747042251291,-2004.70409506,0.0002,2]
[360823606,1747042251300,-1201.5559121,0.0002,2]
[360823607,1747042251310,-1178.5287683,0.0002,2]
[360823608,1747042251320,-16667.07102953,0.0002,20]
[360823609,1747042251330,-358.87051583,0.0002,2]
[360823610,1747042251339,-30000.0,0.0002,2]
[360823611,1747042251348,-85975.77863039,0.0002,2]
[360823612,1747042251357,-1182.7534398,0.0002,2]
[360823613,1747042251367,-9030.81513265,0.0002,2]
[360823614,1747042251376,-400.0,0.0002,2]
[360823615,1747042251385,-408.20900277,0.0002,2]
[360823616,1747042251394,-400.0,0.0002,2]
[360823617,1747042251403,-400.0,0.0002,2]
[360823618,1747042251412,-176.0175202,0.0002,2]
[360823619,1747042251421,-151.0,0.0002,2]
[360823620,1747042251431,-400.0,0.0002,2]
[360823621,1747042251440,-151.0,0.0002,2]
[360823622,1747042251448,-151.0,0.0002,2]
[360823623,1747042251457,-400.0,0.0002,2]
[360823624,1747042251466,-228.432274,0.0002,2]
[360823625,1747042251476,-253.660966,0.0002,2]
[360823626,1747042251485,-400.0,0.0002,2]
[360823627,1747042251494,-249.16644244,0.0002,2]
[360823628,1747042251503,-400.0,0.0002,2]
[360823629,1747042251513,-151.0,0.0002,2]
[360823630,1747042251523,-193.78154623,0.0002,2]
[360823631,1747042251532,-157.78,0.0002,2]
[360823632,1747042251542,-157.78,0.0002,2]
[360823633,1747042251553,-405.02849915,0.0002,2]
[360823634,1747042251564,-529.69850693,0.0002,2]
[360823635,1747042251574,-400.0,0.0002,2]
[360823636,1747042251583,-300.0,0.0002,2]
[360823637,1747042251593,-400.0,0.0002,2]
[360823638,1747042251602,-400.0,0.0002,2]
[360823639,1747042251612,-400.0,0.0002,2]
[360823640,1747042251622,-400.0,0.0002,2]
[360823641,1747042251631,-483.79572943,0.0002,2]
[360823642,1747042251642,-400.0,0.0002,2]
[360823643,1747042251652,-400.0,0.0002,2]
[360823644,1747042251661,-515.21913985,0.0002,2]
[360823645,1747042251671,-400.0,0.0002,2]
[360823646,1747042251679,-400.0,0.0002,2]
[360823647,1747042251689,-400.0,0.0002,2]
[360823648,1747042251698,-400.0,0.0002,2]
[360823649,1747042251707,-450.78,0.0002,2]
[360823650,1747042251716,-400.0,0.0002,2]
[360823651,1747042251725,-400.0,0.0002,2]
[360823652,1747042251735,-339.9760835,0.0002,2]
[360823653,1747042251744,-400.0,0.0002,2]
[360823654,1747042251752,-400.0,0.0002,2]
[360823655,1747042251762,-1000.0,0.0002,5]
[360823656,1747042251771,-1000.0,0.0002,5]
[360823657,1747042251780,-400.0,0.0002,2]
[360823658,1747042251789,-400.0,0.0002,2]
[360823659,1747042251798,-400.0,0.0002,2]
[360823660,1747042251807,-419.97848363,0.0002,2]
[360823661,1747042251817,-400.0,0.0002,2]
[360823662,1747042251826,-400.0,0.0002,2]
[360823663,1747042251835,-151.0,0.0002,2]
[360823664,1747042251844,-151.0,0.0002,2]
[360823665,1747042251853,-400.0,0.0002,2]
[360823666,1747042251862,-400.0,0.0002,2]
[360823667,1747042251871,-400.0,0.0002,2]
[360823668,1747042251880,-400.0,0.0002,2]
[360823669,1747042251891,-400.0,0.0002,2]
[360823670,1747042251901,-151.0,0.0002,2]
[360823671,1747042251910,-400.0,0.0002,2]
[360823672,1747042251919,-400.0,0.0002,2]
[360823673,1747042251928,-400.0,0.0002,2]
[360823674,1747042251937,-400.0,0.0002,2]
[360823675,1747042251947,-547.70768367,0.0002,2]
[360823676,1747042251956,-400.0,0.0002,2]
[360823677,1747042251966,-400.0,0.0002,2]
[360823678,1747042251975,-151.0,0.0002,2]
[360823679,1747042251984,-400.0,0.0002,2]
[360823680,1747042251994,-151.0,0.0002,2]
[360823681,1747042252004,-400.0,0.0002,2]
[360823682,1747042252018,-400.0,0.0002,2]
[360823683,1747042252028,-151.0,0.0002,2]
[360823684,1747042252038,-151.0,0.0002,2]
[360823685,1747042252048,-400.0,0.0002,2]
[360823686,1747042252057,-400.0,0.0002,2]
[360823687,1747042252067,-151.0,0.0002,2]
[360823688,1747042252076,-400.0,0.0002,2]
[360823689,1747042252086,-400.0,0.0002,2]
[360823690,1747042252096,-408.14430799,0.0002,2]
[360823691,1747042252105,-235.329838,0.0002,2]
[360823692,1747042252115,-717.69,0.0002,2]
[360823693,1747042252124,-400.0,0.0002,2]
[360823694,1747042252133,-400.0,0.0002,2]
[360823695,1747042252142,-250.0,0.0002,30]
[360823696,1747042252151,-535.7,0.0002,2]
[360823697,1747042252161,-486.04,0.0002,2]
[360823698,1747042252170,-151.0,0.0002,2]
[360823699,1747042252179,-436.51,0.0002,2]
[360823700,1747042252188,-407.85,0.0002,2]
[360823701,1747042252198,-400.0,0.0002,2]
[360823702,1747042252207,-400.0,0.0002,2]
[360823703,1747042252216,-400.0,0.0002,2]
[360823704,1747042252226,-400.0,0.0002,2]
[360823705,1747042252235,-400.0,0.0002,2]
[360823706,1747042252245,-400.0,0.0002,2]
[360823707,1747042252255,-400.0,0.0002,2]
[360823708,1747042252264,-400.0,0.0002,2]
[360823709,1747042252273,-1307.49,0.0002,2]
[360823710,1747042252282,-400.0,0.0002,2]
[360823711,1747042252292,-400.0,0.0002,2]
[360823712,1747042252301,-400.0,0.0002,2]
[360823713,1747042252310,-151.0,0.0002,2]
[360823714,1747042252320,-538.03,0.0002,2]
[360823715,1747042252329,-425.87,0.0002,2]
[360823716,1747042252338,-400.0,0.0002,2]
[360823717,1747042252348,-400.0,0.0002,2]
[360823718,1747042252357,-465.93,0.0002,2]
[360823719,1747042252366,-400.0,0.0002,2]
[360823720,1747042252376,-151.0,0.0002,2]
[360823721,1747042252385,-400.0,0.0002,2]
[360823722,1747042252394,-400.0,0.0002,2]
[360823723,1747042252403,-170.028722,0.0002,2]
[360823724,1747042252412,-151.0,0.0002,2]
[360823725,1747042252421,-400.0,0.0002,2]
[360823726,1747042252431,-400.0,0.0002,2]
[360823727,1747042252440,-400.0,0.0002,2]
[360823728,1747042252449,-400.0,0.0002,2]
[360823729,1747042252458,-424.25040519,0.0002,2]
[360823730,1747042252467,-400.0,0.0002,2]
[360823731,1747042252476,-400.0,0.0002,2]
[360823732,1747042252485,-400.0,0.0002,2]
[360823733,1747042252495,-754.12,0.0002,2]
[360823734,1747042252504,-400.0,0.0002,2]
[360823735,1747042252513,-400.0,0.0002,2]
[360823736,1747042252523,-11334.72,0.0002,2]
[360823737,1747042252532,-262.06888603,0.0002,2]
[360823738,1747042252541,-400.0,0.0002,2]
[360823739,1747042252551,-1019.39,0.0002,2]
[360823740,1747042252560,-691.18,0.0002,2]
[360823741,1747042252569,-400.0,0.0002,2]
[360823742,1747042252579,-400.0,0.0002,2]
[360823743,1747042252589,-400.0,0.0002,2]
[360823744,1747042252599,-400.0,0.0002,2]
[360823745,1747042252608,-415.97,0.0002,2]
[360823746,1747042252617,-151.0,0.0002,2]
[360823747,1747042252627,-400.0,0.0002,2]
[360823748,1747042252739,-400.0,0.0002,2]
[360823749,1747042252749,-151.0,0.0002,2]
[360823750,1747042252758,-663.64,0.0002,2]
[360823751,1747042252768,-400.0,0.0002,2]
[360823752,1747042252777,-11894.44,0.0002,2]
[360823753,1747042252786,-400.0,0.0002,2]
[360823754,1747042252796,-13440.36,0.0002,2]
[360823755,1747042252805,-151.0,0.0002,2]
[360823756,1747042252815,-400.0,0.0002,2]
[360823757,1747042252824,-192.306258,0.0002,2]
[360823758,1747042252833,-151.0,0.0002,2]
[360823759,1747042252842,-2000.0,0.0002,4]
[360823760,1747042252854,-400.0,0.0002,2]
[360823761,1747042252863,-151.0,0.0002,2]
[360823762,1747042252872,-400.0,0.0002,2]
[360823763,1747042252882,-400.0,0.0002,2]
[360823764,1747042252890,-151.0,0.0002,2]
[360823765,1747042252900,-1437.93,0.0002,2]
[360823766,1747042252909,-316.54,0.0002,2]
[360823767,1747042252918,-400.0,0.0002,2]
[360823768,1747042252926,-400.0,0.0002,2]
[360823769,1747042252935,-2617.95,0.0002,2]
[360823770,1747042252945,-1152.0,0.00020167,2]
[360823771,1747042252956,-589.840113,0.00020187,2]
[360823772,1747042252967,-151.0,0.00020269,2]
[360823773,1747042252976,-205.461838,0.00020269,2]
[360823774,1747042252985,-151.0,0.00020269,2]
[360823775,1747042252994,-151.0,0.00020269,2]
[360823776,1747042253004,-151.0,0.00020269,2]
[360823777,1747042253016,-206.879148,0.00020269,2]
[360823778,1747042253026,-12623.54026388,0.00020269,3]
[360823779,1747042253035,-314.24507772,0.00020269,3]
[360823780,1747042253045,-160.0,0.00020269,3]
[360823781,1747042253055,-160.0,0.00020269,3]
[360823782,1747042253065,-212.17074216,0.00020269,3]
[360823783,1747042253074,-997.78101552,0.0002027,3]
[360823784,1747042253084,-160.0,0.0002027,3]
[360823785,1747042253094,-247.18545,0.0002027,2]
[360823786,1747042253105,-152.062311,0.0002027,2]
[360823787,1747042253116,-153.611688,0.0002027,2]
[360823788,1747042253125,-151.0,0.0002027,2]
[360823789,1747042253135,-178.538605,0.0002027,2]
[360823790,1747042253144,-151.0,0.0002027,2]
[360823791,1747042253153,-151.0,0.0002027,2]
[360823792,1747042253162,-151.0,0.0002027,2]
[360823793,1747042253171,-151.0,0.0002027,2]
[360823794,1747042253181,-151.0,0.00020271,2]
[360823795,1747042253190,-151.0,0.00020271,2]
[360823796,1747042253199,-288.210698,0.00020272,2]
[360823797,1747042253209,-500.0,0.00020273,2]
[360823798,1747042253219,-500.0,0.00020273,2]
[360823799,1747042253228,-500.0,0.00020273,2]
[360823800,1747042253238,-500.23135835,0.00020273,2]
[360823801,1747042253248,-500.0,0.00020273,2]
[360823802,1747042253259,-500.0,0.00020273,2]
[360823803,1747042253269,-500.0,0.00020273,2]
[360823804,1747042253279,-500.0,0.00020273,2]
[360823805,1747042253288,-500.0,0.00020273,2]
[360823806,1747042253298,-500.0,0.00020273,2]
[360823807,1747042253307,-300.0,0.00020273,2]
[360823808,1747042253317,-500.0,0.00020273,2]
[360823809,1747042253326,-500.0,0.00020273,2]
[360823810,1747042253336,-500.0,0.00020273,2]
[360823811,1747042253346,-500.0,0.00020273,2]
[360823812,1747042253355,-400.0,0.00020273,2]
[360823813,1747042253364,-400.0,0.00020273,2]
[360823814,1747042253373,-400.0,0.00020273,2]
[360823815,1747042253383,-400.0,0.00020273,2]
[360823816,1747042253392,-400.0,0.00020273,2]
[360823817,1747042253402,-400.0,0.00020273,2]
[360823818,1747042253411,-400.0,0.00020273,2]
[360823819,1747042253421,-400.0,0.00020273,2]
[360823820,1747042253430,-300.0,0.00020273,2]
[360823821,1747042253440,-400.0,0.00020273,2]
[360823822,1747042253449,-400.0,0.00020273,2]
[360823823,1747042253459,-163.89328105,0.00020273,2]
[360823824,1747042253813,-400.0,0.00019452,2]
[360823825,1747042253823,-294.83170852,0.00019726,2]
[360823826,1747042296886,-171.94854829,0.00013999,2]
[360823827,1747042304750,-102.17708417,0.00013999,2]
[360823828,1747042304778,-97.43972623,0.00013999,2]
[360823829,1747042385211,826.0,0.0002,120]
[360823905,1747043431919,-530.856101,0.00013699,2]
[360823906,1747043431928,-674.34483872,0.00014749,2]
[360823907,1747043431938,-478.0,0.00014798,2]
[360823908,1747043431947,-300.0,0.00014798,2]
[360823909,1747043431957,-5167.98301626,0.00014799,2]
[360823910,1747043431966,-1837.47544847,0.00014799,2]
[360823923,1747043432185,-7504.51404673,0.00014799,2]
[360823925,1747043432195,-300.0,0.0001487,2]
[360823927,1747043432205,-396.76743926,0.00014871,2]
[360823929,1747043432215,-338.36865905,0.00014871,2]
[360823931,1747043432224,-500.0,0.00014871,2]
[360823933,1747043432234,-163.3935257,0.00014871,2]
[360823935,1747043432244,-336.6064743,0.00014871,2]
[360823937,1747043432254,-186.86794338,0.00014871,2]
[360823939,1747043432263,-500.0,0.00014873,2]
[360823941,1747043432273,-263.61989077,0.00014873,2]
[360823943,1747043432283,-500.0,0.00014873,2]
[360823945,1747043432293,-500.0,0.00014873,2]
[360823947,1747043432303,-503.56528475,0.00014873,2]
[360823949,1747043432312,-500.0,0.00014873,2]
[360823952,1747043432321,-500.0,0.00014873,2]
[360823954,1747043432332,-500.0,0.00014873,2]
[360823956,1747043432342,-500.0,0.00014873,2]
[360823958,1747043432351,-500.0,0.00014873,2]
[360823960,1747043432360,-500.0,0.00014873,2]
[360823962,1747043432370,-500.0,0.00014873,2]
[360823964,1747043432379,-500.0,0.00014873,2]
[360823966,1747043432388,-500.0,0.00014873,2]
[360823968,1747043432397,-500.0,0.00014873,2]
[360823970,1747043432410,-500.0,0.00014873,2]
[360823972,1747043432419,-500.0,0.00014873,2]
[360823974,1747043432428,-500.0,0.00014873,2]
[360823976,1747043432437,-500.0,0.00014873,2]
[360823978,1747043432448,-500.0,0.00014873,2]
[360823980,1747043432458,-500.0,0.00014873,2]
[360823982,1747043432467,-500.0,0.00014873,2]
[360823984,1747043432476,-879593.64676707,0.00014898,2]
[360823986,1747043432492,-2072.64996622,0.00014898,2]
[360824081,1747043437925,-17980.93034034,0.00014898,2]
[360824110,1747043440102,-772.79413623,0.00014898,2]
[360824111,1747043440114,-3141.8221496,0.00014898,2]
[360824150,1747043443026,-500.0,0.00014898,2]
[360824156,1747043443082,-142269.42521281,0.00014898,2]
[360824162,1747043443138,-25134.16962402,0.00014898,2]
[360824195,1747043554175,-1085.82134878,0.00013699,2]
[360824196,1747043554197,-6082.17865122,0.00013892,2]
[360824206,1747043619884,-3265.30373358,0.00013892,2]
[360824207,1747043619906,-300.0,0.00014475,2]
[360824208,1747043619927,-11431.69626642,0.00014476,2]
[360824311,1747044629610,-350.52669572,0.0001311,2]
[360824338,1747044631976,-1775.75684688,0.0001311,2]
[360824340,1747044631985,-1000.0,0.00013599,2]
[360824342,1747044631995,-259.9289717,0.00013626,2]
[360824344,1747044632004,-300.0,0.00013635,2]
[360824346,1747044632014,-300.0,0.00013635,2]
[360824348,1747044632024,-24900.0,0.00013636,2]
[360824350,1747044632033,-504.313295,0.00013699,2]
[360824352,1747044632042,-978.9817856,0.00013891,2]
[360824354,1747044632051,-518.0,0.00014,2]
[360824356,1747044632060,-77.4898802,0.00014797,2]
[360824359,1747044632080,-1040.75891475,0.00014797,2]
[360824362,1747044632092,-6133.82006609,0.00014797,2]
[360824364,1747044632101,-364.53581682,0.00014798,2]
[360824366,1747044632113,-500.0,0.00014798,2]
[360824368,1747044632123,-6413.52916839,0.000148,2]
[360824370,1747044632135,-1994.26137729,0.000148,2]
[360824372,1747044632146,-152.0,0.00014859,2]
[360824375,1747044632155,-500.0,0.00014872,2]
[360824377,1747044632165,-355.5482927,0.00014872,2]
[360824379,1747044632175,-500.0,0.00014872,2]
[360824381,1747044632184,-500.0,0.00014872,2]
[360824383,1747044632194,-500.0,0.00014872,2]
[360824385,1747044632203,-500.0,0.00014873,2]
[360824387,1747044632213,-500.0,0.00014873,2]
[360824389,1747044632222,-500.0,0.00014873,2]
[360824391,1747044632232,-503.51089266,0.00014873,2]
[360824393,1747044632242,-500.0,0.00014873,2]
[360824395,1747044632252,-500.0,0.00014873,2]
[360824397,1747044632262,-500.0,0.00014873,2]
[360824399,1747044632271,-500.0,0.00014873,2]